bitfinex-derivatives/quotes_BNBF0:USTF0_20251010
["timestamp","ask_amount","ask_price","bid_price","bid_amount"]
[1760138527788,2.18602802,1107.3,1100.0,0.6259177]
[1760138527990,2.18602802,1108.5,1100.1,0.63073172]
[1760138528193,2.18602802,1108.5,1100.2,1.25664942]
[1760138528392,2.18602802,1108.5,1100.3,0.63073172]
[1760138528693,2.18602802,1107.7,1099.9,0.6259177]
[1760138528890,2.18602802,1107.7,1100.0,1.24648201]
[1760138529190,2.18602802,1107.6,1100.5,0.6259177]
[1760138529488,2.18602802,1107.6,1100.2,0.83884828]
[1760138529489,2.18602802,1107.6,1100.6,0.62056431]
[1760138529890,2.18602802,1107.6,1100.7,0.62083708]
[1760138530093,3.07068432,1107.9,1099.8,1.25827243]
[1760138530094,2.18602802,1108.7,1100.8,0.62083708]
[1760138530290,2.18602802,1108.2,1100.9,1.24591636]
[1760138530489,2.18602802,1108.2,1101.0,0.62083708]
[1760138530691,2.18602802,1108.2,1101.1,0.62083708]
[1760138530893,2.18602802,1108.5,1101.2,1.24591636]
[1760138531094,2.18602802,1108.5,1101.3,0.6282564]
[1760138531393,2.18602802,1108.5,1101.4,0.62796402]
[1760138531589,2.18602802,1108.2,1100.7,0.62507928]
[1760138531793,2.18602802,1108.2,1100.8,1.25342194]
[1760138531993,2.18602802,1108.2,1100.9,0.62834266]
[1760138532290,2.18602802,1108.2,1101.0,0.62834266]
[1760138532489,2.18602802,1107.5,1101.1,0.62991311]
[1760138532689,2.18602802,1107.5,1100.4,0.62507928]
[1760138532894,2.18602802,1107.5,1100.5,0.63023965]
[1760138533098,2.18602802,1107.7,1100.6,1.25531893]
[1760138533393,2.18602802,1107.7,1100.7,0.63023965]
[1760138533591,2.18602802,1107.0,1100.8,1.25531893]
[1760138533791,2.18602802,1107.5,1100.9,1.25531893]
[1760138533991,2.18602802,1107.5,1101.0,0.63023965]
[1760138534194,2.18602802,1107.8,1101.3,0.62507928]
[1760138534390,2.18602802,1107.8,1100.7,0.62507928]
[1760138534590,2.18602802,1107.8,1100.9,0.62507928]
[1760138534895,2.18602802,1107.2,1101.0,0.60961384]
[1760138535096,2.18602802,1107.2,1100.6,0.62507928]
[1760138535297,2.18602802,1107.2,1100.2,0.63591691]
[1760138535494,2.18602802,1106.3,1100.3,0.60120024]
[1760138535697,2.18602802,1106.3,1099.7,1.694]
[1760138535698,2.18602802,1106.4,1100.4,1.23711715]
[1760138535898,2.18602802,1107.3,1101.1,0.63591691]
[1760138536097,2.18602802,1107.3,1101.2,1.23711715]
[1760138536297,2.18602802,1107.3,1101.3,0.60120024]
[1760138536495,5.25671234,1107.8,1101.4,0.60120024]
[1760138536797,5.25671234,1107.8,1101.5,0.60120024]
[1760138536996,5.25671234,1108.1,1100.7,0.63591691]
[1760138537198,5.25671234,1108.1,1100.8,0.62076619]
[1760138537398,2.18602802,1107.2,1100.9,1.2566831]
[1760138537595,2.18602802,1107.2,1101.1,0.63591691]
[1760138537898,2.18602802,1108.0,1101.6,0.63591691]
[1760138538097,2.18602802,1108.2,1101.8,0.63591691]
[1760138538298,2.18602802,1108.1,1101.9,0.62076619]
[1760138538497,2.18602802,1108.1,1102.0,0.62076619]
[1760138538702,2.18602802,1108.1,1101.2,0.63591691]
[1760138538898,2.18602802,1108.0,1101.6,0.63591691]
[1760138539099,2.18602802,1109.2,1102.2,0.63591691]
[1760138539300,2.18602802,1109.2,1102.3,0.62194144]
[1760138539502,2.18602802,1109.1,1102.5,0.63591691]
[1760138539798,0.15754448,1107.5,1102.6,0.62194144]
[1760138540003,0.15754448,1107.5,1102.7,0.62194144]
[1760138540197,0.15754448,1107.5,1102.8,0.62194144]
[1760138540402,0.15754448,1107.5,1101.6,0.63591691]
[1760138540702,2.18602802,1106.9,1101.4,0.62213469]
[1760138540899,2.18602802,1106.9,1101.5,0.62319267]
[1760138541198,2.18602802,1107.0,1101.6,0.62522532]
[1760138541600,2.18602802,1107.0,1101.2,0.83884828]
[1760138541804,2.18602802,1107.0,1101.3,0.62471858]
[1760138542104,2.18602802,1106.8,1101.4,0.62471858]
[1760138542300,2.18602802,1106.8,1100.9,0.64002139]
[1760138542506,2.18602802,1106.7,1101.2,0.64002139]
[1760138542703,2.18602802,1106.7,1101.3,0.6110369]
[1760138543004,2.18602802,1106.8,1101.4,0.6110369]
[1760138543207,2.18602802,1106.8,1101.5,0.6110369]
[1760138543402,2.18602802,1106.8,1101.6,0.6110369]
[1760138543600,2.18602802,1106.8,1101.3,0.64002139]
[1760138543601,2.18602802,1106.8,1101.7,0.6110369]
[1760138543806,3.07068432,1107.3,1101.8,0.6110369]
[1760138544107,0.15754448,1107.5,1102.3,0.64002139]
[1760138544303,0.15754448,1107.5,1102.4,0.6110369]
[1760138544509,0.15754448,1107.5,1102.5,0.6110369]
[1760138544708,0.15754448,1107.5,1102.6,0.6110369]
[1760138544904,0.15754448,1107.5,1102.7,0.6110369]
[1760138545205,0.15754448,1107.5,1102.2,0.64002139]
[1760138545404,0.15754448,1107.5,1102.3,1.22777168]
[1760138545608,0.15754448,1107.5,1102.4,0.58775029]
[1760138545805,0.15754448,1107.5,1102.5,0.58775029]
[1760138546009,0.15754448,1107.5,1102.6,0.58775029]
[1760138546305,0.15754448,1107.5,1102.7,0.58775029]
[1760138546508,0.15754448,1107.5,1102.8,1.22777168]
[1760138546703,0.15754448,1107.5,1102.9,0.58775029]
[1760138546910,0.15754448,1107.5,1103.1,0.64002139]
[1760138547105,0.15754448,1107.5,1103.2,1.22777168]
[1760138547409,0.15754448,1107.5,1103.2,0.58775029]
[1760138547610,0.15754448,1107.5,1103.3,0.60288879]
[1760138547910,0.15754448,1107.5,1103.4,0.60299943]
[1760138548210,0.15754448,1107.5,1102.5,0.6341894]
[1760138548406,0.15754448,1107.5,1102.6,1.21701326]
[1760138548605,0.15754448,1107.5,1102.7,1.21701326]
[1760138548810,0.15754448,1107.5,1102.8,0.58282386]
[1760138549006,0.15754448,1107.5,1102.7,0.6341894]
[1760138549209,0.15754448,1107.5,1102.8,0.5816897]
[1760138549405,0.15754448,1107.5,1102.3,0.6341894]
[1760138549607,0.15754448,1107.5,1102.4,0.58057809]
[1760138549811,0.15754448,1107.5,1102.5,0.58057809]
[1760138550112,0.15754448,1107.5,1102.6,0.58057809]
[1760138550307,0.15754448,1107.5,1102.4,0.6341894]
[1760138550308,0.15754448,1107.5,1102.7,0.58057809]
[1760138550513,0.15754448,1107.5,1102.8,0.58057809]
[1760138550808,0.15754448,1107.5,1102.9,0.58057809]
[1760138551008,0.15754448,1107.5,1103.0,0.58057809]
[1760138551209,0.15754448,1107.5,1103.1,0.58057809]
[1760138551410,0.15754448,1107.5,1102.5,0.6341894]
[1760138551611,0.15754448,1107.5,1102.6,1.21498532]
[1760138551812,0.15754448,1107.5,1102.7,0.58079592]
[1760138552014,0.15754448,1107.5,1102.8,0.58079592]
[1760138552211,0.15754448,1107.5,1102.9,0.58079592]
[1760138552409,0.15754448,1107.5,1102.3,0.6341894]
[1760138552612,0.15754448,1107.5,1102.4,0.57987074]
[1760138552809,0.15754448,1107.5,1102.5,0.57987074]
[1760138553112,0.15754448,1107.5,1102.6,0.57987074]
[1760138553312,0.15754448,1107.5,1102.7,0.57775365]
[1760138553608,0.15754448,1107.5,1102.8,0.57775365]
[1760138553812,0.15754448,1107.5,1102.9,0.57775365]
[1760138554009,0.15754448,1107.5,1103.0,0.57823393]
[1760138554312,0.15754448,1107.5,1103.1,0.57712785]
[1760138554513,0.15754448,1107.5,1103.2,0.57712785]
[1760138554712,0.15754448,1107.5,1103.3,0.57712785]
[1760138554910,0.15754448,1107.5,1102.8,0.62955572]
[1760138555109,0.15754448,1107.5,1102.2,0.62955572]
[1760138555313,0.15754448,1107.5,1102.3,1.20548167]
[1760138555513,0.15754448,1107.5,1102.7,0.62955572]
[1760138555808,0.15754448,1107.5,1102.9,0.62955572]
[1760138556012,0.15754448,1107.5,1102.8,0.57592595]
[1760138556013,0.15754448,1107.5,1103.0,1.20548167]
[1760138556214,0.15754448,1107.5,1103.1,0.57592595]
[1760138556412,0.15754448,1107.5,1103.2,0.57592595]
[1760138556610,0.15754448,1107.5,1103.3,0.57422069]
[1760138556812,0.15754448,1107.5,1102.6,0.62955572]
[1760138557009,0.15754448,1107.5,1102.7,0.5746038]
[1760138557214,0.15754448,1107.5,1102.8,0.5746038]
[1760138557414,0.15754448,1107.5,1102.9,0.5746038]
[1760138557612,0.15754448,1107.5,1103.0,0.5746038]
[1760138557811,0.15754448,1107.5,1103.1,0.5746038]
[1760138558112,0.15754448,1107.5,1102.4,0.62955572]
[1760138558311,0.15754448,1107.5,1102.5,0.57505445]
[1760138558515,0.15754448,1107.5,1102.0,0.62955572]
[1760138558811,0.15754448,1107.5,1102.1,0.57600697]
[1760138559016,0.15754448,1107.5,1102.2,0.57600697]
[1760138559213,0.15754448,1107.5,1101.2,0.62955572]
[1760138559517,2.18602802,1107.3,1101.3,1.2066209]
[1760138559712,0.15754448,1107.5,1101.4,1.2066209]
[1760138559914,0.15754448,1107.5,1101.5,0.57706518]
[1760138560115,2.18602802,1107.3,1101.6,0.57706518]
[1760138560314,2.18602802,1107.3,1101.7,0.57706518]
[1760138560517,2.18602802,1107.3,1101.8,0.57706518]
[1760138560718,0.15754448,1107.5,1100.8,0.62955572]
[1760138560918,0.15754448,1107.5,1101.0,0.62955572]
[1760138561115,0.15754448,1107.5,1101.2,0.62955572]
[1760138561315,2.18602802,1107.3,1101.3,0.6270711]
[1760138561518,0.15754448,1107.5,1101.5,0.62955572]
[1760138561721,0.15754448,1107.5,1101.8,0.62955572]
[1760138562023,0.15754448,1107.5,1101.9,0.6270711]
[1760138562317,0.15754448,1107.5,1102.0,0.6270711]
[1760138562521,0.15754448,1107.5,1102.1,0.6270711]
[1760138562821,0.15754448,1107.5,1102.2,0.6270711]
[1760138563023,0.15754448,1107.5,1101.7,0.62955572]
[1760138563223,0.15754448,1107.5,1101.8,1.22710637]
[1760138563520,0.15754448,1107.5,1101.9,0.59755065]
[1760138563819,0.15754448,1107.5,1102.0,0.59755065]
[1760138564022,0.15754448,1107.5,1102.1,0.59755065]
[1760138564323,0.15754448,1107.5,1102.2,0.59755065]
[1760138564518,0.15754448,1107.5,1102.3,0.59755065]
[1760138564717,0.15754448,1107.5,1102.4,0.59755065]
[1760138564920,0.15754448,1107.5,1102.5,1.22710637]
[1760138565120,0.15754448,1107.5,1102.6,0.59755065]
[1760138565420,0.15754448,1107.5,1102.7,2.113]
[1760138567324,0.15754448,1107.5,1102.8,0.59267988]
[1760138567527,0.15754448,1107.5,1102.9,0.59267988]
[1760138567825,0.15754448,1107.5,1102.7,2.113]
[1760138570321,0.15754448,1107.5,1102.8,0.57930031]
[1760138570521,0.15754448,1107.5,1102.9,0.57930031]
[1760138570822,0.15754448,1107.5,1102.7,2.113]
[1760138571825,0.15754448,1107.5,1102.8,0.57887925]
[1760138572026,0.15754448,1107.5,1102.9,0.57887925]
[1760138572226,0.15754448,1107.5,1103.0,0.57887925]
[1760138572426,0.15754448,1107.5,1102.7,2.113]
[1760138572626,0.15754448,1107.5,1102.8,0.57900631]
[1760138572826,0.15754448,1107.5,1102.7,2.113]
[1760138573423,0.15754448,1107.5,1102.8,0.57948906]
[1760138573628,0.15754448,1107.5,1102.7,2.113]
[1760138579430,2.1978617,1107.2,1102.7,2.113]
[1760138579832,2.1978617,1106.6,1102.7,2.113]
[1760138580037,2.1978617,1106.7,1102.7,2.113]
[1760138580234,1.318398,1106.2,1102.7,2.113]
[1760138580537,1.318398,1106.5,1102.7,2.113]
[1760138580933,1.318398,1106.1,1102.7,2.113]
[1760138581232,1.318398,1106.0,1102.7,2.113]
[1760138581832,1.318398,1106.2,1102.7,2.113]
[1760138582333,1.318398,1106.0,1102.7,2.113]
[1760138582534,1.318398,1105.7,1102.7,2.113]
[1760138582938,1.318398,1105.8,1102.7,2.113]
[1760138583339,2.1978617,1106.8,1102.7,2.113]
[1760138583538,2.1978617,1107.0,1102.7,2.113]
[1760138583738,3.0770063,1107.2,1102.7,2.113]
[1760138583939,2.1978617,1107.3,1102.7,2.113]
[1760138584838,2.1978617,1106.1,1102.7,2.113]
[1760138585538,0.15754448,1107.5,1102.7,2.113]
[1760138587946,1.32817064,1104.4,1102.7,1.95541379]
[1760138588142,1.32817064,1104.4,1100.5,0.64319188]
[1760138588343,1.32817064,1104.3,1100.6,0.56492877]
[1760138588546,1.32817064,1104.2,1100.6,1.20812065]
[1760138588744,1.32817064,1104.4,1100.7,1.20812065]
[1760138588943,3.09906483,1106.1,1101.1,0.64319188]
[1760138588944,2.21361774,1106.1,1101.1,0.64319188]
[1760138589147,2.21361774,1106.1,1101.2,0.56492877]
[1760138589348,2.21361774,1105.9,1101.4,0.64319188]
[1760138589543,2.21361774,1106.1,1101.7,0.64319188]
[1760138589749,2.21361774,1106.1,1101.8,0.56492877]
[1760138589947,1.32692202,1105.2,1101.9,0.56492877]
[1760138590144,1.32692202,1105.1,1101.5,0.64319188]
[1760138590446,1.32692202,1104.8,1101.1,0.64319188]
[1760138590644,1.32692202,1104.9,1101.2,1.20466485]
[1760138590848,1.32692202,1105.1,1101.3,1.20466485]
[1760138591045,1.32692202,1105.2,1101.4,0.56147297]
[1760138591343,1.32692202,1104.5,1100.8,0.64319188]
[1760138591548,1.32692202,1104.5,1100.9,0.55915241]
[1760138591745,1.32692202,1104.7,1101.0,0.55886653]
[1760138592047,1.32692202,1105.1,1101.2,0.64278047]
[1760138592249,1.32692202,1105.1,1101.3,1.201647]
[1760138592549,1.32692202,1105.2,1101.7,0.64278047]
[1760138592746,1.32692202,1105.2,1101.8,0.55886653]
[1760138592949,1.32692202,1105.3,1101.9,0.55886653]
[1760138593145,1.32692202,1105.8,1102.0,0.55886653]
[1760138593350,1.32692202,1105.8,1102.1,0.55886653]
[1760138593646,1.32692202,1106.2,1102.3,0.64278047]
[1760138593848,1.32692202,1106.2,1102.2,0.55886653]
[1760138593849,1.32692202,1106.1,1102.4,0.55886653]
[1760138594050,1.32692202,1106.1,1102.5,0.55886653]
[1760138594350,3.09906483,1107.9,1101.9,0.64278047]
[1760138594351,1.32692202,1105.6,1101.9,0.64278047]
[1760138594551,1.32692202,1105.2,1102.0,0.55385652]
[1760138594752,1.32692202,1105.7,1102.1,1.19663699]
[1760138595051,3.09906483,1107.1,1102.5,0.64278047]
[1760138595252,3.09906483,1107.1,1102.6,0.55385652]
[1760138595553,2.21361774,1107.5,1102.7,1.19663699]
[1760138595748,2.21361774,1108.0,1102.9,0.64278047]
[1760138595948,2.21361774,1107.9,1103.3,0.64278047]
[1760138596148,2.21361774,1107.9,1103.4,0.55385652]
[1760138596449,2.21361774,1108.0,1103.5,0.55385652]
[1760138596646,2.21361774,1108.0,1103.6,0.55385652]
[1760138596848,2.21361774,1108.0,1102.7,0.64278047]
[1760138597150,0.88502696,1106.1,1102.3,0.64278047]
[1760138597548,0.88502696,1106.1,1102.2,0.64278047]
[1760138597751,0.88502696,1106.1,1101.8,0.85754208]
[1760138597752,2.21361774,1108.0,1102.8,0.64278047]
[1760138597949,2.21361774,1108.0,1102.9,0.57871254]
[1760138598148,2.21361774,1107.6,1103.0,1.22149301]
[1760138598349,2.21361774,1107.6,1103.1,0.57871254]
[1760138598550,2.21361774,1107.6,1103.2,0.57871254]
[1760138598749,2.21361774,1107.4,1103.3,0.57871254]
[1760138599048,2.21361774,1107.4,1102.8,0.64278047]
[1760138599254,2.21361774,1107.5,1102.9,0.57862865]
[1760138599455,2.21361774,1107.5,1102.0,0.64278047]
[1760138599651,2.21361774,1107.5,1101.6,0.85754208]
[1760138599652,2.21361774,1107.5,1102.1,0.57954592]
[1760138599852,2.21361774,1106.1,1102.2,0.57994733]
[1760138600155,2.21361774,1107.5,1103.2,0.64278047]
[1760138600352,2.21361774,1107.5,1103.3,0.64407837]
[1760138600554,2.21361774,1107.5,1102.7,0.64278047]
[1760138600750,2.21361774,1107.2,1102.8,1.28680522]
[1760138600955,2.21361774,1107.2,1102.9,0.64402475]
[1760138601253,2.21361774,1107.0,1102.5,0.64278047]
[1760138601454,2.21361774,1107.3,1102.8,0.64278047]
[1760138601654,2.21361774,1107.3,1102.9,0.62686039]
[1760138601951,2.21361774,1107.3,1102.6,0.64278047]
[1760138601952,2.21361774,1107.0,1102.5,0.64278047]
[1760138602152,0.88650647,1104.9,1101.7,0.64278047]
[1760138602453,0.88650647,1105.5,1102.3,0.64278047]
[1760138602756,0.88650647,1105.2,1102.0,0.64278047]
[1760138602956,0.88650647,1105.6,1102.3,0.64278047]
[1760138603256,3.09906483,1107.2,1102.8,0.64278047]
[1760138603456,3.09906483,1107.2,1102.9,0.57598279]
[1760138603654,2.21361774,1106.8,1103.0,0.57598279]
[1760138603854,2.21361774,1106.8,1102.5,0.64278047]
[1760138604155,2.21361774,1106.4,1102.6,0.57725325]
[1760138604353,2.21361774,1106.4,1102.7,0.57725325]
[1760138604554,2.21361774,1107.0,1102.8,0.57725325]
[1760138604753,2.21361774,1107.0,1102.9,0.57776264]
[1760138604958,2.21361774,1107.0,1103.0,0.57776264]
[1760138605258,2.21361774,1107.1,1103.1,0.57776264]
[1760138605455,2.21361774,1107.1,1103.2,0.57776264]
[1760138605755,2.21361774,1107.6,1102.6,0.64278047]
[1760138605957,2.21361774,1107.6,1102.7,0.60786873]
[1760138606155,2.21361774,1107.5,1102.8,0.60786873]
[1760138606459,2.21361774,1107.5,1102.9,0.60786873]
[1760138606659,2.21361774,1106.8,1102.3,0.64278047]
[1760138606954,2.21361774,1106.8,1102.6,0.64278047]
[1760138607159,2.21361774,1106.9,1101.9,0.64278047]
[1760138607358,2.21361774,1106.9,1102.0,0.57120554]
[1760138607556,2.21361774,1106.9,1102.1,0.57120554]
[1760138607756,2.21361774,1106.9,1101.6,0.64278047]
[1760138607757,2.21361774,1106.0,1101.6,0.64278047]
[1760138608056,2.21361774,1106.5,1101.9,0.64278047]
[1760138608255,2.21361774,1106.5,1101.7,0.57080811]
[1760138608256,2.21361774,1107.3,1102.6,0.64278047]
[1760138608559,2.21361774,1107.3,1102.7,0.57080811]
[1760138608755,2.21361774,1106.8,1102.8,0.57080811]
[1760138608956,2.21361774,1107.0,1102.9,0.56943059]
[1760138609160,2.21361774,1107.0,1102.3,0.64278047]
[1760138609460,2.21361774,1107.9,1102.6,0.64278047]
[1760138609660,2.21361774,1107.9,1102.8,0.64278047]
[1760138609861,2.21361774,1107.3,1103.0,0.64278047]
[1760138610057,2.21361774,1107.3,1103.1,0.56865016]
[1760138610357,2.21361774,1107.1,1103.2,0.56865016]
[1760138610563,2.21361774,1107.1,1102.9,0.64278047]
[1760138610756,2.21361774,1107.1,1103.0,0.56962271]
[1760138610959,2.21361774,1107.5,1103.1,0.56962271]
[1760138611160,2.21361774,1107.5,1103.2,0.56962271]
[1760138611360,2.21361774,1107.1,1103.3,0.56962271]
[1760138611565,2.21361774,1107.1,1103.4,0.56962271]
[1760138611862,2.21361774,1107.1,1102.6,0.64278047]
[1760138612063,2.21361774,1107.7,1102.7,1.21234344]
[1760138612258,2.21361774,1107.7,1102.8,0.56956297]
[1760138612564,2.21361774,1107.2,1102.9,0.57046088]
[1760138612759,2.21361774,1107.4,1103.0,0.57046088]
[1760138612962,2.21361774,1107.4,1103.1,0.57046088]
[1760138613460,2.21361774,1107.4,1102.4,0.85754208]
[1760138613760,2.21361774,1108.1,1103.3,0.64470409]
[1760138614059,2.21361774,1108.1,1103.4,0.59084033]
[1760138614259,3.09906483,1108.4,1101.7,2.14397296]
[1760138614260,2.21361774,1108.3,1103.5,0.59084033]
[1760138614463,2.21361774,1108.3,1103.6,0.59195531]
[1760138614663,3.09906483,1108.2,1103.2,0.64470409]
[1760138614959,3.09906483,1108.2,1101.0,2.14397296]
[1760138614960,2.21361774,1107.5,1103.3,0.59400369]
[1760138615161,2.21361774,1107.5,1103.4,0.59400369]
[1760138615359,5.31268257,1108.2,1103.5,0.59400369]
[1760138615559,5.31268257,1108.2,1103.6,0.59400369]
[1760138615759,2.21361774,1107.9,1103.7,0.59400369]
[1760138615960,2.21361774,1107.9,1103.8,0.59400369]
[1760138616160,2.21361774,1107.6,1103.4,0.64470409]
[1760138616360,2.21361774,1107.6,1103.5,0.59602089]
[1760138616562,2.21361774,1108.2,1103.6,0.59602089]
[1760138616760,2.21361774,1108.3,1103.7,1.24072498]
[1760138616962,2.21361774,1108.3,1103.8,0.59602089]
[1760138617162,2.21361774,1108.3,1103.9,0.59602089]
[1760138617364,2.21361774,1108.0,1104.0,0.59602089]
[1760138617562,2.21361774,1108.0,1104.1,0.59602089]
[1760138617767,2.21361774,1108.8,1104.2,0.59602089]
[1760138617967,2.21361774,1109.4,1104.4,0.64470409]
[1760138618262,2.21361774,1109.4,1104.5,0.59602089]
[1760138618467,2.21361774,1109.3,1104.6,0.59602089]
[1760138618665,2.21361774,1109.3,1104.7,0.59602089]
[1760138618868,2.21361774,1109.2,1104.8,0.59602089]
[1760138619064,2.21361774,1109.2,1104.9,0.59602089]
[1760138619268,2.21361774,1109.2,1104.5,0.64470409]
[1760138619467,2.21361774,1109.2,1104.6,0.59279784]
[1760138619667,2.21361774,1109.2,1105.0,0.64470409]
[1760138619864,2.21361774,1110.1,1105.6,0.64470409]
[1760138620166,2.21361774,1110.1,1105.7,0.59279784]
[1760138620366,2.21361774,1110.1,1105.2,0.64470409]
[1760138620667,2.21361774,1110.1,1105.1,0.64470409]
[1760138620868,1.32334323,1107.8,1104.1,0.64470409]
[1760138621068,1.32334323,1108.3,1104.2,1.20459258]
[1760138621270,1.32334323,1108.4,1104.3,1.20459258]
[1760138621568,1.32334323,1108.2,1104.4,0.55988849]
[1760138621768,1.32334323,1108.3,1104.4,0.64470409]
[1760138621965,1.32334323,1108.5,1104.6,0.64470409]
[1760138622164,1.32334323,1108.5,1104.7,0.55988849]
[1760138622463,1.32334323,1108.6,1104.8,0.55988849]
[1760138622669,1.32334323,1108.6,1104.6,0.64470409]
[1760138622670,1.32334323,1108.7,1104.9,0.55988849]
[1760138622870,1.32334323,1108.8,1105.0,0.55988849]
[1760138623070,1.32334323,1108.9,1105.1,0.54707208]
[1760138623266,1.32334323,1109.4,1105.1,0.64470409]
[1760138623466,1.32334323,1109.4,1105.2,1.19177617]
[1760138623766,1.32334323,1109.4,1105.3,1.19177617]
[1760138624070,1.32334323,1109.6,1105.4,0.54707208]
[1760138624265,1.32334323,1109.9,1105.4,1.19177617]
[1760138624470,1.32334323,1110.0,1105.5,0.54707208]
[1760138624765,1.32334323,1109.8,1105.6,0.54707208]
[1760138624967,1.32334323,1109.9,1105.2,0.64470409]
[1760138625171,1.32334323,1109.9,1105.3,0.54517895]
[1760138625376,1.32334323,1110.2,1105.4,0.54517895]
[1760138625571,1.32334323,1109.8,1104.5,0.64470409]
[1760138625770,1.32334323,1109.7,1104.8,0.64470409]
[1760138625973,1.32334323,1109.9,1105.0,0.64470409]
[1760138626171,1.32334323,1109.9,1105.1,0.54617121]
[1760138626474,1.32334323,1110.1,1105.2,0.54617121]
[1760138626671,3.09906483,1111.5,1104.4,0.64470409]
[1760138626672,1.32334323,1109.9,1104.4,0.64470409]
[1760138626872,1.32334323,1109.6,1104.5,0.54557885]
[1760138627074,1.32334323,1109.5,1104.6,0.54557885]
[1760138627275,1.32334323,1109.5,1104.7,0.54557885]
[1760138627474,1.32334323,1109.9,1104.8,0.54557885]
[1760138627677,1.32334323,1109.9,1104.6,0.63939607]
[1760138627875,1.32334323,1110.0,1104.8,0.63939607]
[1760138628177,1.32334323,1110.5,1104.9,0.5483617]
[1760138628376,1.32334323,1110.7,1105.0,0.5483617]
[1760138628576,1.32334323,1109.9,1104.5,0.63939607]
[1760138628878,1.32334323,1110.4,1104.7,0.63939607]
[1760138629175,1.32334323,1110.5,1104.8,0.54685616]
[1760138629375,1.32334323,1110.6,1104.8,0.54685616]
[1760138629580,1.32334323,1110.8,1104.9,0.54685616]
[1760138629778,1.32334323,1110.8,1105.0,0.54685616]
[1760138630078,1.32334323,1110.6,1104.3,0.63939607]
[1760138630276,1.32334323,1110.1,1104.4,0.54564215]
[1760138630478,1.32334323,1110.0,1104.5,0.54564215]
[1760138630782,1.32334323,1109.7,1103.8,0.63939607]
[1760138630980,1.32334323,1109.4,1103.9,0.54441564]
[1760138631178,4.42723548,1111.6,1104.0,0.54441564]
[1760138631179,1.32334323,1110.0,1104.0,0.54441564]
[1760138631476,1.32334323,1110.1,1104.1,0.54441564]
[1760138631677,1.32334323,1110.1,1104.1,0.63939607]
[1760138631879,1.32334323,1110.4,1104.5,0.63939607]
[1760138632182,1.32334323,1110.6,1104.6,0.54441564]
[1760138632378,1.32334323,1111.1,1104.7,0.54441564]
[1760138632578,1.32334323,1110.7,1104.8,1.18381171]
[1760138632779,1.32334323,1111.7,1105.6,0.63939607]
[1760138632980,1.32334323,1111.6,1105.7,0.54441564]
[1760138633180,1.32334323,1111.7,1105.8,0.54441564]
[1760138633380,1.32334323,1111.7,1105.2,0.63939607]
[1760138633581,1.32334323,1111.7,1105.3,0.54095284]
[1760138633784,1.32334323,1111.7,1104.8,0.85960545]
[1760138633785,1.32334323,1111.7,1105.4,0.54095284]
[1760138633981,1.32334323,1111.5,1105.5,0.54095284]
[1760138634186,1.32334323,1111.5,1105.0,0.63939607]
[1760138634383,1.32334323,1111.7,1105.1,1.18007566]
[1760138634684,1.32334323,1111.7,1105.2,0.54067959]
[1760138634881,1.32334323,1111.6,1105.3,1.18007566]
[1760138635184,1.32334323,1111.7,1105.4,0.54067959]
[1760138635385,1.32334323,1111.8,1105.5,0.54067959]
[1760138635587,1.32334323,1111.9,1105.6,0.54067959]
[1760138635885,1.32334323,1111.9,1105.7,0.54067959]
[1760138636085,1.32334323,1112.2,1105.8,0.5386727]
[1760138636289,1.32334323,1112.2,1105.3,0.63939607]
[1760138636488,1.32334323,1111.9,1105.4,0.5379195]
[1760138636687,1.32334323,1112.2,1105.5,0.53742648]
[1760138636984,1.32334323,1112.0,1104.9,0.63939607]
[1760138637284,1.32334323,1111.7,1104.5,0.63939607]
[1760138637487,1.32334323,1110.4,1103.4,0.63939607]
[1760138637684,1.32334323,1110.3,1103.5,0.53871859]
[1760138637884,1.32334323,1110.8,1103.7,0.63939607]
[1760138638084,1.32334323,1110.7,1103.8,0.53871859]
[1760138638288,1.32334323,1110.5,1103.9,0.53871859]
[1760138638484,1.32334323,1109.2,1102.2,0.63939607]
[1760138639184,1.32334323,1109.2,1101.9,0.85960545]
[1760138639386,2.21361774,1110.9,1102.8,0.58104353]
[1760138639589,2.21361774,1111.2,1102.9,1.20941649]
[1760138639884,2.21361774,1111.2,1103.0,0.58104353]
[1760138640090,2.21361774,1111.1,1103.1,0.58104353]
[1760138640286,2.21361774,1111.1,1103.1,0.62837296]
[1760138640589,2.21361774,1111.4,1103.2,1.25221451]
[1760138640791,2.21361774,1111.4,1103.3,1.25221451]
[1760138641092,2.21361774,1111.2,1103.4,0.62384155]
[1760138641287,2.21361774,1111.2,1103.5,0.62384155]
[1760138641492,2.21361774,1110.9,1103.6,0.62384155]
[1760138641694,2.21361774,1111.3,1103.7,0.62384155]
[1760138641995,2.21361774,1111.3,1103.8,0.62366304]
[1760138642193,2.21361774,1112.3,1103.9,0.62366304]
[1760138642393,2.21361774,1112.1,1104.0,0.62366304]
[1760138642593,2.21361774,1112.1,1104.1,0.62366304]
[1760138642889,2.21361774,1112.1,1104.2,0.62366304]
[1760138643093,2.21361774,1111.8,1104.3,0.62366304]
[1760138643393,2.21361774,1111.7,1104.0,0.62797167]
[1760138643589,3.09906483,1111.5,1102.8,0.62797167]
[1760138643894,2.21361774,1111.1,1103.4,0.62797167]
[1760138644189,2.21361774,1111.9,1103.7,0.62797167]
[1760138644389,2.21361774,1111.8,1103.9,0.62797167]
[1760138644693,2.21361774,1111.9,1104.0,1.24984185]
[1760138644889,2.21361774,1111.9,1104.1,0.62187018]
[1760138645087,2.21361774,1112.0,1104.2,1.24984185]
[1760138645291,2.21361774,1112.0,1104.3,0.62187018]
[1760138645491,2.21361774,1112.2,1104.6,0.62797167]
[1760138645694,2.21361774,1112.2,1104.7,0.62187018]
[1760138645892,2.21361774,1112.2,1104.8,0.62187018]
[1760138646092,2.21361774,1112.2,1104.9,0.61996817]
[1760138646294,2.21361774,1112.2,1104.6,0.62797167]
[1760138646591,2.21361774,1112.2,1104.7,0.62045628]
[1760138646792,2.21361774,1112.2,1104.8,0.62045628]
[1760138646995,2.21361774,1112.2,1104.3,0.62797167]
[1760138647195,2.21361774,1112.4,1104.4,0.61990374]
[1760138647492,2.21361774,1112.4,1104.5,0.62225367]
[1760138647699,2.21361774,1111.4,1104.0,0.62797167]
[1760138647996,2.21361774,1112.0,1104.3,0.62797167]
[1760138648194,2.21361774,1112.1,1104.4,1.24985259]
[1760138648396,2.21361774,1112.1,1104.5,0.62188092]
[1760138648594,2.21361774,1112.1,1104.6,0.62188092]
[1760138648799,2.21361774,1112.3,1104.7,0.62188092]
[1760138648997,2.21361774,1112.4,1104.8,0.62188092]
[1760138649299,2.21361774,1112.4,1104.9,1.24985259]
[1760138649500,2.21361774,1112.6,1105.2,0.62797167]
[1760138649699,2.21361774,1112.6,1105.3,0.62188092]
[1760138649999,2.21361774,1112.5,1105.4,0.62188092]
[1760138650194,3.09906483,1112.9,1105.5,0.62188092]
[1760138650195,2.21361774,1112.6,1105.5,0.62188092]
[1760138650802,2.21361774,1112.6,1104.9,0.85960545]
[1760138650996,3.09906483,1112.9,1093.0,1.342]
[1760138651197,10.6253651,1117.3,1093.0,1.342]
[1760138651499,2.15226269,1113.1,1105.5,0.63043992]
[1760138651696,2.15226269,1112.8,1105.6,1.25710671]